fUST/lending_fUST_20260111
["ID","MTS","AMOUNT","RATE_DAILY","PERIOD"]
[401236457,1768062640176,-1062.72941146,0.00012329,2]
[401236458,1768062640187,-1062.72941146,0.00012329,2]
[401236459,1768062640199,-1062.72941146,0.00012329,2]
[401236460,1768062640208,-1062.72941146,0.00012329,2]
[401236461,1768062640218,-1062.72941146,0.00012329,2]
[401236462,1768062640229,-1062.72941146,0.00012329,2]
[401236463,1768062640240,-1062.72941146,0.00012329,2]
[401236464,1768062640250,-1062.72941146,0.00012329,2]
[401236465,1768062640259,-1062.72941146,0.00012329,2]
[401236466,1768062640269,-1062.72941146,0.00012329,2]
[401236467,1768062640278,-1062.72941146,0.00012329,2]
[401236468,1768062640288,-1062.72941146,0.00012329,2]
[401236469,1768062640297,-1062.72941146,0.00012329,2]
[401236470,1768062640307,-1062.72941146,0.00012329,2]
[401236471,1768062640316,-1062.72941146,0.00012329,2]
[401236472,1768062640326,-1062.72941146,0.00012329,2]
[401236473,1768062640337,-1062.72941146,0.00012329,2]
[401236474,1768062640347,-1062.72941146,0.00012329,2]
[401236475,1768062640357,-1062.72941139,0.00012329,2]
[401236476,1768062640367,-319.54093411,0.00012329,2]
[401236477,1768062640379,-500.88241622,0.0001236,2]
[401236478,1768062640388,-166.7024978,0.00012386,2]
[401236479,1768062640398,-238.23109128,0.00012466,2]
[401236480,1768062640407,-500.0,0.00012466,2]
[401236481,1768062640417,-500.0,0.00012466,2]
[401236482,1768062640426,-500.0,0.00012466,2]
[401236483,1768062640436,-500.0,0.00012466,2]
[401236484,1768062640446,-250.0,0.00012497,2]
[401236485,1768062640456,-250.0,0.00012497,2]
[401236486,1768062640466,-250.0,0.00012497,2]
[401236487,1768062640475,-500.0,0.00012603,2]
[401236488,1768062640484,-500.0,0.00012603,2]
[401236489,1768062640494,-349.74,0.00012603,2]
[401236490,1768062640503,-273.3269152,0.0001268,2]
[401236491,1768062640512,-500.0,0.0001274,2]
[401236492,1768062640521,-250.0,0.0001274,2]
[401236493,1768062640531,-500.0,0.0001274,2]
[401236494,1768062640540,-250.0,0.00012789,2]
[401236495,1768062640550,-500.0,0.00012877,2]
[401236496,1768062640559,-500.0,0.00012877,2]
[401236497,1768062640568,-349.74,0.00012877,2]
[401236498,1768062640578,-1000.0,0.00012883,2]
[401236499,1768062640588,-421.31556528,0.00012906,2]
[401236500,1768062640597,-7142.16034431,0.00013,2]
[401236501,1768062640606,-245.94179051,0.00013,3]
[401236502,1768062640616,-500.0,0.00013014,2]
[401236503,1768062640625,-500.0,0.00013014,2]
[401236504,1768062640635,-1410.0,0.00013118,2]
[401236505,1768062640644,-300.0,0.00013151,2]
[401236506,1768062640654,-500.0,0.00013151,2]
[401236507,1768062640663,-349.74,0.00013151,2]
[401236508,1768062640673,-500.0,0.00013288,2]
[401236509,1768062640682,-4044.6574628,0.00013346,2]
[401236510,1768062640691,-500.0,0.00013425,2]
[401236511,1768062640701,-349.74267094,0.00013425,2]
[401236512,1768062640710,-4438.61381512,0.00013456,2]
[401236513,1768062640719,-500.0,0.00013562,2]
[401236514,1768062640729,-900.827532,0.00013699,2]
[401236515,1768062640738,-500.0,0.00013699,2]
[401236516,1768062640749,-204.0,0.00013768,2]
[401236517,1768062640758,-500.0,0.00013836,2]
[401236518,1768062640767,-489.65888898,0.00013973,2]
[401236519,1768062640776,-273.3269152,0.00014091,2]
[401236520,1768062640786,-1000.0,0.00014172,2]
[401236521,1768062640796,-244.0,0.00014172,2]
[401236522,1768062640805,-2922.61652878,0.00014762,2]
[401236523,1768062640816,-1000.0,0.00015589,2]
[401236524,1768062640826,-492.0,0.00015589,2]
[401236525,1768062640835,-231.0,0.00015768,2]
[401236526,1768062640845,-10383.59895371,0.00017,2]
[401236527,1768062640855,-1000.0,0.00017148,2]
[401236528,1768062640865,-791.0,0.00017148,2]
[401236529,1768062640874,-258.0,0.00017768,2]
[401236530,1768062640884,-3396.73938935,0.00018143,2]
[401236531,1768062640893,-151.0,0.000187,2]
[401236532,1768062640902,-1000.0,0.00018863,2]
[401236533,1768062640912,-1000.0,0.00018863,2]
[401236534,1768062640921,-285.0,0.00019768,2]
[401236535,1768062640930,-1000.0,0.00020749,2]
[401236536,1768062640940,-1000.0,0.00020749,2]
[401236537,1768062640949,-579.0,0.00020749,2]
[401236538,1768062640959,-177.03,0.000208,2]
[401236539,1768062640968,-6834.71,0.000208,2]
[401236540,1768062640978,-250.0,0.00020968,2]
[401236541,1768062640988,-268.92290975,0.00020968,2]
[401236542,1768062640997,-9999.3338094,0.00020968,2]
[401236543,1768062641007,-151.0,0.000213,3]
[401236544,1768062641016,-312.0,0.00021768,2]
[401236545,1768062641027,-1000.0,0.00022824,10]
[401236546,1768062641040,-1000.0,0.00022824,10]
[401236547,1768062641050,-1000.0,0.00022824,10]
[401236548,1768062641059,-1041.66666667,0.00023391,2]
[401236549,1768062641069,-339.0,0.00023768,2]
[401236550,1768062641079,-151.0,0.000239,6]
[401236551,1768062641089,-3396.73938935,0.00024299,2]
[401236552,1768062641098,-218.0,0.00024685,14]
[401236553,1768062641112,-1000.0,0.00025106,10]
[401236554,1768062641122,-1000.0,0.00025106,10]
[401236555,1768062641132,-1000.0,0.00025106,10]
[401236556,1768062641142,-715.0,0.00025106,10]
[401236557,1768062641152,-366.0,0.00025768,2]
[401236558,1768062641163,-500.0,0.00026267,7]
[401236559,1768062641172,-151.0,0.000265,17]
[401236560,1768062641182,-1500.0,0.00027,2]
[401236561,1768062641192,-1000.0,0.00027617,30]
[401236562,1768062641202,-1000.0,0.00027617,30]
[401236563,1768062641212,-1000.0,0.00027617,30]
[401236564,1768062641222,-393.0,0.00027768,2]
[401236565,1768062641232,-169.0,0.00027973,27]
[401236566,1768062641242,-15326.28285121,0.00028,2]
[401236567,1768062641252,-520.27726249,0.00028,2]
[401236568,1768062641262,-516.35781364,0.00029052,7]
[401236569,1768062641272,-151.0,0.000291,15]
[401236570,1768062641282,-420.0,0.00029768,2]
[401236571,1768062641292,-676.037,0.00030378,26]
[401236572,1768062641300,-169.041,0.00030378,26]
[401236573,1768062641310,-3396.73938935,0.00030456,2]
[401236574,1768062641320,-155.0,0.0003126,45]
[401236575,1768062641331,-151.0,0.000316,15]
[401236576,1768062641340,-447.0,0.00031768,2]
[401236577,1768062641351,-151.0,0.000318,15]
[401236578,1768062641362,-999.0,0.00032876,120]
[401236579,1768062641371,-151.6053793,0.000332,117]
[401236580,1768062641381,-151.6053793,0.000332,117]
[401236581,1768062641391,-151.6053793,0.000332,117]
[401236582,1768062641401,-352.89,0.00033444,14]
[401236583,1768062641411,-210.0,0.00033699,5]
[401236584,1768062641422,-258.38,0.00033736,2]
[401236585,1768062641432,-474.0,0.00033768,120]
[401236586,1768062641443,-999.0,0.00033972,120]
[401236587,1768062641453,-324.5,0.00034073,30]
[401236588,1768062641464,-796.0,0.00034073,30]
[401236589,1768062641475,-151.0,0.000341,16]
[401236590,1768062641486,-151.0,0.000342,17]
[401236591,1768062641496,-5058.79910613,0.00034263,46]
[401236592,1768062641506,-151.0,0.000344,19]
[401236593,1768062641516,-270.0,0.00034521,5]
[401236594,1768062641526,-999.0,0.00035068,120]
[401236595,1768062641535,-200.0,0.00035289,120]
[401236596,1768062641546,-330.0,0.00035342,5]
[401236597,1768062641556,-200.0,0.00035408,120]
[401236598,1768062641566,-200.0,0.00035558,120]
[401236599,1768062641575,-500.0,0.00035616,30]
[401236600,1768062641584,-6834.71,0.000357,14]
[401236601,1768062641594,-156.012,0.00035725,2]
[401236602,1768062641604,-501.0,0.00035768,120]
[401236603,1768062641613,-156.012,0.00035825,2]
[401236604,1768062641623,-156.012,0.00035925,2]
[401236605,1768062641632,-247601.95839655,0.00035937,4]
[401236606,1768062641642,-20844.54809533,0.00036,120]
[401236607,1768062641652,-156.012,0.00036025,2]
[401236608,1768062641661,-156.012,0.00036125,2]
[401236609,1768062641671,-377.1655679,0.00036137,30]
[401236610,1768062641680,-377.1655679,0.00036137,30]
[401236611,1768062641690,-376.6134449,0.00036137,30]
[401236612,1768062641699,-731.96785671,0.00036164,120]
[401236613,1768062641709,-500.0,0.00036164,30]
[401236614,1768062641719,-190.020001,0.00036164,5]
[401236615,1768062641728,-161.0,0.00036192,86]
[401236616,1768062641738,-200.0,0.00036203,120]
[401236617,1768062641748,-453.20238296,0.00036612,2]
[401236618,1768062641758,-3396.73938935,0.00036612,2]
[401236619,1768062641767,-453.20238294,0.00036649,2]
[401236620,1768062641776,-453.20238294,0.00036686,2]
[401236621,1768062641785,-5000.44,0.000367,2]
[401236622,1768062641795,-500.0,0.00036712,30]
[401236623,1768062641805,-500.0,0.00036712,30]
[401236624,1768062641815,-500.0,0.00036712,30]
[401236625,1768062641824,-500.0,0.00036712,30]
[401236626,1768062641834,-500.17912256,0.00036712,30]
[401236627,1768062641843,-2479.36,0.00036712,30]
[401236628,1768062641853,-2479.36,0.00036712,30]
[401236629,1768062641863,-2479.36,0.00036712,30]
[401236630,1768062641872,-2479.36,0.00036712,30]
[401236631,1768062641882,-2479.36,0.00036712,30]
[401236632,1768062641892,-2479.36,0.00036712,30]
[401236633,1768062641901,-2479.36,0.00036712,30]
[401236634,1768062641910,-2479.36,0.00036712,30]
[401236635,1768062641920,-2479.36,0.00036712,30]
[401236636,1768062641931,-2479.36,0.00036712,30]
[401236637,1768062641942,-2479.36,0.00036712,30]
[401236638,1768062641953,-2479.36,0.00036712,30]
[401236639,1768062641962,-2479.36,0.00036712,30]
[401236640,1768062641972,-2479.36,0.00036712,30]
[401236641,1768062641981,-2479.36,0.00036712,30]
[401236642,1768062641991,-2479.36,0.00036712,30]
[401236643,1768062642000,-2479.36,0.00036712,30]
[401236644,1768062642010,-2479.36,0.00036712,30]
[401236645,1768062642019,-2479.36,0.00036712,30]
[401236646,1768062642030,-2479.36,0.00036712,30]
[401236647,1768062642041,-2479.36,0.00036712,30]
[401236648,1768062642051,-2479.36,0.00036712,30]
[401236649,1768062642060,-2479.36,0.00036712,30]
[401236650,1768062642070,-2479.42,0.00036712,30]
[401236651,1768062642079,-16189.62,0.00036712,30]
[401236652,1768062642089,-16189.62,0.00036712,30]
[401236653,1768062642099,-16189.62,0.00036712,30]
[401236654,1768062642108,-16189.62,0.00036712,30]
[401236655,1768062642117,-16189.62,0.00036712,30]
[401236656,1768062642127,-16189.62,0.00036712,30]
[401236657,1768062642136,-16189.62,0.00036712,30]
[401236658,1768062642146,-16189.62,0.00036712,30]
[401236659,1768062642156,-16189.62,0.00036712,30]
[401236660,1768062642165,-16189.62,0.00036712,30]
[401236661,1768062642174,-16189.62,0.00036712,30]
[401236662,1768062642183,-16189.62,0.00036712,30]
[401236663,1768062642192,-16189.62,0.00036712,30]
[401236664,1768062642201,-16189.62,0.00036712,30]
[401236665,1768062642210,-16189.62,0.00036712,30]
[401236666,1768062642220,-16189.62,0.00036712,30]
[401236667,1768062642229,-16189.62,0.00036712,30]
[401236668,1768062642239,-16189.62,0.00036712,30]
[401236669,1768062642249,-16189.62,0.00036712,30]
[401236670,1768062642259,-16189.62,0.00036712,30]
[401236671,1768062642269,-16189.62,0.00036712,30]
[401236672,1768062642278,-16189.62,0.00036712,30]
[401236673,1768062642288,-16189.62,0.00036712,30]
[401236674,1768062642298,-16189.70100427,0.00036712,30]
[401236675,1768062642307,-4887.27,0.00036712,30]
[401236676,1768062642316,-4887.27,0.00036712,30]
[401236677,1768062642326,-4887.27,0.00036712,30]
[401236678,1768062642338,-4887.27,0.00036712,30]
[401236679,1768062642348,-4887.27,0.00036712,30]
[401236680,1768062642357,-4887.27,0.00036712,30]
[401236681,1768062642367,-4887.27,0.00036712,30]
[401236682,1768062642376,-4887.27,0.00036712,30]
[401236683,1768062642385,-4887.27,0.00036712,30]
[401236684,1768062642395,-4887.27,0.00036712,30]
[401236685,1768062642404,-4887.27,0.00036712,30]
[401236686,1768062642414,-4887.27,0.00036712,30]
[401236687,1768062642424,-4887.27,0.00036712,30]
[401236688,1768062642434,-4887.27,0.00036712,30]
[401236689,1768062642443,-4887.27,0.00036712,30]
[401236690,1768062642454,-4887.27,0.00036712,30]
[401236691,1768062642464,-4887.27,0.00036712,30]
[401236692,1768062642474,-4887.27,0.00036712,30]
[401236693,1768062642483,-4887.27,0.00036712,30]
[401236694,1768062642493,-4887.27,0.00036712,30]
[401236695,1768062642503,-4887.27,0.00036712,30]
[401236696,1768062642620,-4887.27,0.00036712,30]
[401236697,1768062642631,-4887.27,0.00036712,30]
[401236698,1768062642641,-4887.3,0.00036712,30]
[401236699,1768062642651,-2195.79,0.00036712,30]
[401236700,1768062642660,-2195.79,0.00036712,30]
[401236701,1768062642671,-2195.79,0.00036712,30]
[401236702,1768062642680,-2195.79,0.00036712,30]
[401236703,1768062642690,-2195.79,0.00036712,30]
[401236704,1768062642699,-2195.79,0.00036712,30]
[401236705,1768062642709,-2195.79,0.00036712,30]
[401236706,1768062642718,-26257.46,0.00036712,30]
[401236707,1768062642727,-2195.79,0.00036712,30]
[401236708,1768062642738,-26257.46,0.00036712,30]
[401236709,1768062642747,-2195.79,0.00036712,30]
[401236710,1768062642757,-26257.46,0.00036712,30]
[401236711,1768062642767,-2195.79,0.00036712,30]
[401236712,1768062642776,-26257.46,0.00036712,30]
[401236713,1768062642786,-2195.79,0.00036712,30]
[401236715,1768062642795,-26257.46,0.00036712,30]
[401236716,1768062642804,-2195.79,0.00036712,30]
[401236718,1768062642814,-26257.46,0.00036712,30]
[401236719,1768062642823,-2195.79,0.00036712,30]
[401236720,1768062642832,-26257.46,0.00036712,30]
[401236721,1768062642842,-2195.79,0.00036712,30]
[401236722,1768062642851,-26257.46,0.00036712,30]
[401236723,1768062642860,-2195.79,0.00036712,30]
[401236724,1768062642870,-26257.46,0.00036712,30]
[401236725,1768062642879,-2195.79,0.00036712,30]
[401236726,1768062642889,-26257.46,0.00036712,30]
[401236727,1768062642900,-2195.79,0.00036712,30]
[401236728,1768062642911,-26257.46,0.00036712,30]
[401236729,1768062642920,-2195.79,0.00036712,30]
[401236730,1768062642930,-26257.46,0.00036712,30]
[401236731,1768062642941,-2195.79,0.00036712,30]
[401236732,1768062642950,-26257.46,0.00036712,30]
[401236733,1768062642959,-2195.79,0.00036712,30]
[401236734,1768062642970,-26257.46,0.00036712,30]
[401236735,1768062642980,-2195.79,0.00036712,30]
[401236736,1768062642990,-26257.46,0.00036712,30]
[401236737,1768062642999,-2195.79,0.00036712,30]
[401236738,1768062643008,-26257.46,0.00036712,30]
[401236739,1768062643019,-2195.79,0.00036712,30]
[401236740,1768062643031,-26257.46,0.00036712,30]
[401236741,1768062643042,-26257.46,0.00036712,30]
[401236742,1768062643054,-2195.88,0.00036712,30]
[401236743,1768062643064,-26257.46,0.00036712,30]
[401236744,1768062643074,-26257.46,0.00036712,30]
[401236745,1768062643084,-26257.46,0.00036712,30]
[401236746,1768062643094,-26257.46,0.00036712,30]
[401236747,1768062643106,-26257.46,0.00036712,30]
[401236748,1768062643115,-26257.54452659,0.00036712,30]
[401236749,1768062643125,-241.15003758,0.00036712,120]
[401236750,1768062643135,-5048.48,0.00036712,30]
[401236751,1768062643145,-5048.48,0.00036712,30]
[401236752,1768062643154,-5048.48,0.00036712,30]
[401236753,1768062643164,-5048.48,0.00036712,30]
[401236754,1768062643174,-5048.48,0.00036712,30]
[401236755,1768062643184,-5048.48,0.00036712,30]
[401236756,1768062643194,-5048.48,0.00036712,30]
[401236757,1768062643204,-5048.48,0.00036712,30]
[401236758,1768062643215,-5048.48,0.00036712,30]
[401236759,1768062643226,-5048.48,0.00036712,30]
[401236760,1768062643237,-5048.48,0.00036712,30]
[401236761,1768062643249,-5048.48,0.00036712,30]
[401236762,1768062643260,-5048.48,0.00036712,30]
[401236763,1768062643270,-5048.48,0.00036712,30]
[401236764,1768062643281,-5048.48,0.00036712,30]
[401236765,1768062643292,-5048.48,0.00036712,30]
[401236766,1768062643303,-5048.48,0.00036712,30]
[401236767,1768062643313,-5048.48,0.00036712,30]
[401236768,1768062643324,-5048.48,0.00036712,30]
[401236769,1768062643338,-5048.48,0.00036712,30]
[401236770,1768062643351,-5048.48,0.00036712,30]
[401236771,1768062643360,-5048.48,0.00036712,30]
[401236772,1768062643371,-5048.48,0.00036712,30]
[401236773,1768062643381,-5048.65,0.00036712,30]
[401236774,1768062643391,-532.55,0.00036712,30]
[401236775,1768062643401,-453.20238294,0.00036723,2]
[401236776,1768062643411,-453.20238294,0.0003676,2]
[401236777,1768062643422,-453.20238294,0.00036798,2]
[401236778,1768062643432,-453.20238294,0.00036835,2]
[401236779,1768062643442,-500.0,0.00036835,13]
[401236780,1768062643453,-453.20238294,0.00036872,2]
[401236781,1768062643463,-151.0,0.00036898,30]
[401236782,1768062643473,-250.0,0.00036898,30]
[401236783,1768062643482,-151.0,0.00036899,30]
[401236784,1768062643492,-250.0,0.00036899,30]
[401236785,1768062643501,-177.03,0.000369,30]
[401236786,1768062643511,-2509.35859505,0.000369,120]
[401236787,1768062643521,-453.20238294,0.00036909,2]
[401236788,1768062643531,-151.6053793,0.00036946,120]
[401236789,1768062643540,-453.20238294,0.00036946,2]
[401236790,1768062643550,-800.0,0.00036987,7]
[401236791,1768062643559,-2044.18983378,0.00037,2]
[401236792,1768062643568,-151.895159,0.00037045,31]
[401236793,1768062643578,-151.895159,0.00037045,31]
[401236794,1768062643587,-151.895159,0.00037045,31]
[401236795,1768062643597,-151.895159,0.00037045,31]
[401236796,1768062643608,-151.895159,0.00037045,31]
[401236797,1768062643617,-151.895159,0.00037045,31]
[401236798,1768062643626,-151.895159,0.00037045,31]
[401236799,1768062643636,-151.895159,0.00037045,31]
[401236800,1768062643646,-151.895159,0.00037045,31]
[401236801,1768062643655,-151.895159,0.00037045,31]
[401236802,1768062643665,-151.895159,0.00037045,31]
[401236803,1768062643674,-151.895159,0.00037045,31]
[401236804,1768062643683,-151.895159,0.00037045,31]
[401236805,1768062643692,-151.895159,0.00037045,31]
[401236806,1768062643702,-151.895159,0.00037045,31]
[401236807,1768062643711,-151.895159,0.00037045,31]
[401236808,1768062643720,-151.895159,0.00037045,31]
[401236809,1768062643729,-151.895159,0.00037045,31]
[401236810,1768062643739,-151.895159,0.00037045,31]
[401236811,1768062643748,-151.895151,0.00037045,31]
[401236812,1768062643758,-151.0,0.00037045,31]
[401236813,1768062643767,-151.0,0.00037045,31]
[401236814,1768062643777,-4673373.90590877,0.00037046,20]
[401236815,1768062643795,-386.72667835,0.00037046,20]
[401236816,1768062643809,-49003.71557778,0.00037046,20]
[401236817,1768062643821,-7156.49090212,0.00037046,20]
[401236819,1768062644377,-3e-08,0.00037046,20]
[401236822,1768062645816,-1064.8859712,9.643e-05,2]
[401236823,1768062645826,-574.39868735,0.00011313,2]
[401236827,1768062646283,-490.48728385,0.00011313,2]
[401236828,1768062646295,-349.98653458,0.00012983,2]
[401236829,1768062647135,-414.45031978,0.00012983,2]
[401236833,1768063080122,214.73,7.992e-05,2]
[401236834,1768063080396,214.73,7.992e-05,2]
[401236835,1768063080664,214.73,7.992e-05,2]
[401236985,1768063838397,-1254.917095,0.00010959,2]
[401236986,1768063838407,-574.0,0.00010959,2]
[401236987,1768063838417,-300.0,0.00011225,2]
[401236988,1768063838426,-300.0,0.00011225,2]
[401236989,1768063838436,-93.28238588,0.00011225,2]
[401236990,1768063838448,-61.71761412,0.00011225,2]
[401236991,1768063838458,-300.0,0.00011225,2]
[401236992,1768063838467,-1200.0,0.00011225,2]
[401236993,1768063838476,-1000000.0,0.00011226,2]
[401236994,1768063838485,-273.0,0.00011323,2]
[401236995,1768063838494,-18517.7084152,0.00011325,2]
[401236996,1768063838503,-999.0,0.00011326,2]
[401236997,1768063838512,-505.0,0.00011328,2]
[401236998,1768063838522,-50000.0,0.00011551,2]
[401236999,1768063838531,-300.0,0.00011551,2]
[401237000,1768063838540,-300.0,0.00011551,2]
[401237001,1768063838551,-300.0,0.00011551,2]
[401237002,1768063838560,-300.0,0.00011551,2]
[401237003,1768063838568,-300.0,0.00011551,2]
[401237004,1768063838578,-300.0,0.00011551,2]
[401237005,1768063838588,-300.0,0.00011551,2]
[401237006,1768063838598,-300.0,0.00011551,2]
[401237007,1768063838608,-300.0,0.00011551,2]
[401237008,1768063838617,-300.0,0.00011551,2]
[401237009,1768063838626,-300.0,0.00011551,2]
[401237010,1768063838635,-300.0,0.00011551,2]
[401237011,1768063838644,-300.0,0.00011551,2]
[401237012,1768063838653,-300.0,0.00011551,2]
[401237013,1768063838662,-300.0,0.00011551,2]
[401237014,1768063838671,-600.0,0.00011781,2]
[401237015,1768063838680,-166.66666666,0.00012227,2]
[401237016,1768063838689,-540.829,0.00012325,2]
[401237017,1768063838698,-169.04140704,0.00012325,2]
[401237018,1768063838707,-1410.0,0.00012348,2]
[401237019,1768063838716,-4666.37901762,0.00012378,2]
[401237020,1768063838725,-151.0,0.000125,2]
[401237021,1768063838735,-329.12,0.0001257,2]
[401237022,1768063838744,-500.0,0.0001257,2]
[401237023,1768063838753,-500.0,0.0001257,2]
[401237024,1768063838762,-500.0,0.0001257,2]
[401237025,1768063838772,-500.0,0.0001257,2]
[401237026,1768063838782,-500.0,0.0001257,2]
[401237027,1768063838791,-500.0,0.0001257,2]
[401237028,1768063838800,-500.0,0.0001257,2]
[401237029,1768063838810,-500.0,0.0001257,2]
[401237030,1768063838962,-500.0,0.0001257,2]
[401237031,1768063838972,-500.0,0.0001257,2]
[401237032,1768063838982,-500.0,0.0001257,2]
[401237033,1768063838992,-500.0,0.0001257,2]
[401237034,1768063839002,-500.0,0.0001257,2]
[401237035,1768063839012,-500.0,0.0001257,2]
[401237036,1768063839022,-500.0,0.0001257,2]
[401237037,1768063839032,-223.66734024,0.0001257,2]
[401237038,1768063839041,-500.0,0.0001257,2]
[401237039,1768063839051,-500.0,0.0001257,2]
[401237040,1768063839060,-500.0,0.0001257,2]
[401237041,1768063839069,-500.0,0.0001257,2]
[401237042,1768063839078,-500.0,0.0001257,2]
[401237043,1768063839088,-500.0,0.0001257,2]
[401237044,1768063839097,-500.0,0.0001257,2]
[401237045,1768063839106,-500.0,0.0001257,2]
[401237046,1768063839115,-500.0,0.0001257,2]
[401237047,1768063839124,-500.0,0.0001257,2]
[401237048,1768063839134,-500.0,0.0001257,2]
[401237049,1768063839144,-500.0,0.0001257,2]
[401237050,1768063839153,-500.0,0.0001257,2]
[401237051,1768063839163,-500.0,0.0001257,2]
[401237052,1768063839174,-500.0,0.0001257,2]
[401237053,1768063839185,-420.17074482,0.0001257,2]
[401237054,1768063839194,-500.0,0.0001257,2]
[401237055,1768063839204,-500.0,0.0001257,2]
[401237056,1768063839214,-500.0,0.0001257,2]
[401237057,1768063839223,-500.0,0.0001257,2]
[401237058,1768063839232,-500.0,0.0001257,2]
[401237059,1768063839242,-500.0,0.0001257,2]
[401237060,1768063839251,-500.0,0.0001257,2]
[401237061,1768063839260,-500.0,0.0001257,2]
[401237062,1768063839270,-500.0,0.0001257,2]
[401237063,1768063839279,-500.0,0.0001257,2]
[401237064,1768063839288,-500.0,0.0001257,2]
[401237065,1768063839298,-500.0,0.0001257,2]
[401237066,1768063839307,-500.0,0.0001257,2]
[401237067,1768063839317,-500.0,0.0001257,2]
[401237068,1768063839326,-500.0,0.0001257,2]
[401237069,1768063839335,-500.0,0.0001257,2]
[401237070,1768063839344,-500.0,0.0001257,2]
[401237071,1768063839353,-500.0,0.0001257,2]
[401237072,1768063839361,-500.0,0.0001257,2]
[401237073,1768063839372,-500.0,0.0001257,2]
[401237074,1768063839383,-500.0,0.0001257,2]
[401237075,1768063839392,-500.0,0.0001257,2]
[401237076,1768063839402,-500.0,0.0001257,2]
[401237077,1768063839413,-500.0,0.0001257,2]
[401237078,1768063839422,-500.0,0.0001257,2]
[401237079,1768063839432,-500.0,0.0001257,2]
[401237080,1768063839442,-500.0,0.0001257,2]
[401237081,1768063839452,-500.0,0.0001257,2]
[401237082,1768063839462,-500.0,0.0001257,2]
[401237083,1768063839472,-500.0,0.0001257,2]
[401237084,1768063839482,-500.0,0.0001257,2]
[401237085,1768063839491,-500.0,0.0001257,2]
[401237086,1768063839501,-500.0,0.0001257,2]
[401237087,1768063839511,-500.0,0.0001257,2]
[401237088,1768063839521,-500.0,0.0001257,2]
[401237089,1768063839531,-600.0,0.0001257,2]
[401237090,1768063839540,-500.0,0.0001257,2]
[401237091,1768063839552,-500.0,0.0001257,2]
[401237092,1768063839564,-500.0,0.0001257,2]
[401237093,1768063839574,-500.0,0.0001257,2]
[401237094,1768063839583,-500.0,0.0001257,2]
[401237095,1768063839592,-500.0,0.0001257,2]
[401237096,1768063839602,-500.0,0.0001257,2]
[401237097,1768063839613,-500.0,0.0001257,2]
[401237098,1768063839622,-500.0,0.0001257,2]
[401237099,1768063839631,-500.0,0.0001257,2]
[401237100,1768063839641,-200.0,0.0001257,2]
[401237101,1768063839651,-500.0,0.0001257,2]
[401237102,1768063839660,-500.0,0.0001257,2]
[401237103,1768063839669,-500.0,0.0001257,2]
[401237104,1768063839678,-500.0,0.0001257,2]
[401237105,1768063839687,-500.0,0.0001257,2]
[401237106,1768063839696,-500.0,0.0001257,2]
[401237107,1768063839705,-500.0,0.0001257,2]
[401237108,1768063839714,-500.0,0.0001257,2]
[401237109,1768063839724,-500.0,0.0001257,2]
[401237110,1768063839734,-500.0,0.0001257,2]
[401237111,1768063839743,-500.0,0.0001257,2]
[401237112,1768063839752,-500.0,0.0001257,2]
[401237113,1768063839761,-500.0,0.0001257,2]
[401237114,1768063839770,-500.0,0.0001257,2]
[401237115,1768063839780,-500.0,0.0001257,2]
[401237116,1768063839789,-500.0,0.0001257,2]